[Event "28th Hit Open-A 2024"]
[Site "Nova Gorica"]
[Date "2024.01.28"]
[Round "4.5"]
[White "Karacsonyi, Gellert"]
[Black "Skrbec, Leon"]
[Result "1/2-1/2"]
[ECO "D02"]
[WhiteElo "2398"]
[BlackElo "2218"]
[Annotator "TA"]
[PlyCount "120"]
[EventDate "2024.01.22"]
[EventType "swiss"]
[EventCountry "SLO"]
[SourceTitle "playchess.com"]
[Source "ChessBase"]
[SourceQuality "1"]
[TimeControl "5400+30"]

{[%evp 20,120,0,0,0,0,0,0,0,0,0,0,0,0,41,43,35,-6,0,0,0,0,0,0,18,19,16,15,13,27,26,0,0,-72,0,0,8,0,0,0,0,0,0,0,0,0,-8,-10,-10,-8,-8,-18,-8,-16,-5,-24,0,0,0,0,0,0,0,0,0,0,8,8,8,8,8,8,8,8,8,8,8,0,0,0,0,0,0,0,1,0,0,0,0,0,0,0,0,0,0,0,0,0,0,0,0,0,0]} 1. d4 {[%emt 0:00:52]} Nf6 {[%emt 0:00:28]} 2. Nf3 {[%emt 0:00:12]} e6 {[%emt 0:00:07]} 3. Bf4 {[%emt 0:00:25]} c5 {[%emt 0:00:48]} 4. e3 {[%emt 0:00:08]} Nc6 {[%emt 0:00:12]} 5. c3 {[%emt 0:02:20]} d5 {[%emt 0:02:51]} 6. Nbd2 {[%emt 0:00:12]} Bd6 {[%emt 0:02:01]} 7. Bg3 {[%emt 0:00:11]} O-O {[%emt 0:00:16]} 8. Bd3 {[%emt 0:00:05]} b6 {[%emt 0:03:01]} 9. Qe2 {[%emt 0:00:14] D02: 1 d4 d5 2 Nf3 sidelines, including 2...Nf6 3 g3 and 2...Nf6 3 Bf4.} Bb7 {[%emt 0:06:12]} 10. e4 {[%emt 0:00:07]} dxe4 {[%emt 0:04:10]} 11. Nxe4 {[%emt 0:00:07]} Nxe4 {[%emt 0:09:12]} 12. Qxe4 {[%emt 0:00:12]} g6 {[%emt 0:00:05]} 13. Rd1 {[%emt 0:08:12]} Na5 $146 {[%emt 0:16:30]} ({Predecessor:} 13... Bxg3 14. hxg3 c4 15. Bc2 Qe7 16. Qe3 f6 17. O-O Rae8 18. Rfe1 Nd8 19. d5 Nf7 20. dxe6 {1-0 Parramon Ros,F (2005)-Burset Camps,G (1570) Girona Tardor op 4th 2020 (2)}) 14. Qe2 {[%emt 0:00:34]} cxd4 {[%emt 0:02:02]} 15. Be4 $1 {[%emt 0:03:04]} Bxg3 {[%emt 0:06:25]} 16. hxg3 {[%emt 0:00:26]} Qf6 {[%emt 0:00:58]} 17. Bxb7 {[%emt 0:11:47]} (17. cxd4 Bxe4 18. Qxe4 Nc4 $18) 17... Nxb7 {[%emt 0:02:06]} 18. Ne5 {[%emt 0:07:57]} Rad8 {[%emt 0:15:55]} (18... dxc3 19. Nd7 Qe7 20. Nxf8 cxb2 21. Qxb2 (21. Nxh7 $2 Qb4+ 22. Qd2 b1=Q $19) 21... Rxf8 22. O-O $14) 19. cxd4 {[%emt 0:03:55]} Nd6 {[%emt 0:02:05]} 20. g4 {[%emt 0:01:08]} Qf4 {[%emt 0:00:46]} 21. f3 {[%emt 0:19:45]} f5 {[%emt 0:11:17]} 22. O-O {[%emt 0:20:46]} Nf7 {[%emt 0:08:19]} (22... fxg4 {with more complications.} 23. Nc6 Rde8 24. fxg4 Qe4) 23. Nc6 {[%emt 0:09:07]} Rd6 {[%emt 0:00:14]} 24. Nxa7 {[%emt 0:00:08]} Rxd4 {[%emt 0:00:04]} 25. Qxe6 {[%emt 0:00:17]} Rfd8 {[%emt 0:00:12]} 26. Rde1 {[%emt 0:02:19] [#]} (26. Rxd4 $11 Qxd4+ 27. Kh1 Qxb2 28. gxf5) 26... Rd2 {[%emt 0:03:14]} (26... R4d6 $1 $17 {[%cal Rd6e6]} 27. Qb3 Rd2) 27. gxf5 {[%emt 0:03:23]} (27. Qxb6 Ng5 $17) 27... Qg5 {[%emt 0:01:41]} 28. Rf2 {[%emt 0:00:53]} (28. Qxb6 $2 Qxg2#) 28... Rxf2 {[%emt 0:01:21]} 29. Kxf2 {[%emt 0:00:01]} Rd2+ {[%emt 0:00:09]} 30. Re2 {[%emt 0:00:05]} Qh4+ {[%emt 0:00:20]} 31. g3 {[%emt 0:01:17]} Qh2+ {[%emt 0:00:40]} 32. Ke1 {[%emt 0:00:08]} Rxe2+ {[%emt 0:00:04]} 33. Qxe2 {[%emt 0:00:02]} Qxg3+ {[%emt 0:00:07]} (33... Qxe2+ 34. Kxe2 Nd6 35. fxg6 $18) 34. Kf1 {[%emt 0:04:27]} Qh3+ {[%emt 0:00:07]} 35. Kf2 {[%emt 0:00:17]} Qxf5 {[%emt 0:00:07]} 36. Nb5 {[%emt 0:00:20]} h5 {[%emt 0:00:41]} 37. Nd4 {[%emt 0:00:33]} Qc5 {[%emt 0:01:44]} 38. Qe8+ {[%emt 0:00:01]} Kg7 {[%emt 0:00:02]} 39. Qe3 {[%emt 0:00:05]} Qd5 {[%emt 0:00:49]} 40. Ne6+ {[%emt 0:01:09]} Kf6 {[%emt 0:00:19]} 41. Nf4 {[%emt 0:02:19]} Qd6 {[%emt 0:01:07]} 42. Kg2 {[%emt 0:00:17]} Ne5 {[%emt 0:00:13]} 43. Qxb6 {[%emt 0:00:31]} Qxb6 {[%emt 0:00:27]} 44. Nd5+ {[%emt 0:00:01]} Ke6 {[%emt 0:00:01]} 45. Nxb6 {[%emt 0:00:03]} Kd6 {[%emt 0:01:10]} (45... Nd3 46. Nc4) 46. Kg3 {[%emt 0:01:05]} g5 {[%emt 0:00:22]} 47. Na4 {[%emt 0:00:58]} Nd3 {[%emt 0:00:48]} 48. b3 {[%emt 0:00:56]} h4+ {[%emt 0:00:42]} 49. Kg2 {[%emt 0:00:08]} ({Don't go for} 49. Kg4 $2 Nf2+ 50. Kxg5 h3 $19) 49... Ne1+ {[%emt 0:01:14]} 50. Kf2 {[%emt 0:00:01]} Nd3+ {[%emt 0:00:01]} 51. Kg2 {[%emt 0:00:49]} Ne1+ {[%emt 0:00:05]} 52. Kf2 {[%emt 0:00:03]} Nd3+ {[%emt 0:00:05]} 53. Ke3 {[%emt 0:01:46]} h3 {[%emt 0:00:06]} 54. Nc3 $1 {[%emt 0:00:01]} (54. Kxd3 $2 {loses.} h2 55. Ke3 h1=Q $19 (55... h1=R 56. Nc3 $11)) 54... h2 {[%emt 0:00:37]} 55. Ne4+ {[%emt 0:00:01]} Kd5 {[%emt 0:00:40]} (55... Ke5 $5 56. Ng3 $8 Nf4 $11) 56. Ng3 $1 {[%emt 0:00:01]} Nc1 {[%emt 0:00:05]} 57. Kf2 {[%emt 0:01:09]} Nxa2 {[%emt 0:00:35]} 58. Kg2 {[%emt 0:00:01]} Nc1 {[%emt 0:01:07]} 59. b4 {[%emt 0:00:02]} Nd3 {[%emt 0:00:07]} 60. Kxh2 {[%emt 0:01:42]} Ne1 {[%emt 0:00:10]} 1/2-1/2

[Event "28th Hit Open-A 2024"]
[Site "Nova Gorica"]
[Date "2024.01.28"]
[Round "4.6"]
[White "Bodrogi, Bendeguz"]
[Black "Kulkarni Bhakti"]
[Result "1/2-1/2"]
[ECO "D02"]
[WhiteElo "2261"]
[BlackElo "2364"]
[Annotator "RC"]
[PlyCount "209"]
[EventDate "2024.01.22"]
[EventType "swiss"]
[EventCountry "SLO"]
[SourceTitle "playchess.com"]
[Source "ChessBase"]
[SourceQuality "1"]
[TimeControl "5400+30"]

1. Nf3 {[%emt 0:00:06]} d5 {[%emt 0:02:13]} 2. g3 {[%emt 0:00:35]} Nc6 {[%emt 0:00:57]} 3. d4 {[%emt 0:01:04]} Bf5 {[%emt 0:00:30]} 4. Bg2 {[%emt 0:04:52]} Nb4 {[%emt 0:00:34]} 5. Na3 {[%emt 0:00:24]} e6 {[%emt 0:00:15]} 6. O-O {[%emt 0:01:43]} Nc6 {[%emt 0:00:32]} 7. Nb1 {[%emt 0:03:07]} Nb4 {[%emt 0:01:07]} 8. Na3 {[%emt 0:00:19]} Nc6 {[%emt 0:01:22]} 9. Nb1 {[%emt 0:03:00]} Be7 {[%emt 0:03:44]} 10. c4 {[%emt 0:02:30]} Nf6 {[%emt 0:08:17]} 11. Nc3 {[%emt 0:16:04]} dxc4 {[%emt 0:02:41]} 12. Ne5 {[%emt 0:06:16]} O-O {[%emt 0:10:15]} 13. e4 {[%emt 0:29:42]} Bg6 {[%emt 0:02:26]} 14. Nxg6 {[%emt 0:05:08]} hxg6 {[%emt 0:00:29]} 15. e5 {[%emt 0:00:30]} Nd5 {[%emt 0:02:13]} 16. Nxd5 {[%emt 0:00:22]} exd5 {[%emt 0:00:05]} 17. b3 {[%emt 0:00:10]} cxb3 {[%emt 0:01:55]} 18. axb3 {[%emt 0:01:02]} Qd7 {[%emt 0:04:18]} 19. Be3 {[%emt 0:04:19]} Nb4 {[%emt 0:01:36]} 20. f4 {[%emt 0:04:13]} Rfc8 {[%emt 0:08:45]} 21. Rc1 {[%emt 0:01:14]} a5 {[%emt 0:04:05]} 22. g4 {[%emt 0:01:25]} a4 {[%emt 0:10:31]} 23. f5 {[%emt 0:00:31]} Ra6 {[%emt 0:00:37]} 24. bxa4 {[%emt 0:05:22]} Qxa4 {[%emt 0:04:20]} 25. Qf3 {[%emt 0:00:07]} Qe8 {[%emt 0:03:52]} 26. Bd2 {[%emt 0:01:18]} g5 {[%emt 0:05:37]} 27. e6 {[%emt 0:01:42]} Na2 {[%emt 0:05:30]} 28. exf7+ {[%emt 0:00:55]} Qxf7 {[%emt 0:00:03]} 29. Qb3 {[%emt 0:01:51]} Nxc1 {[%emt 0:03:14]} 30. Qxb7 {[%emt 0:00:05]} Ne2+ {[%emt 0:00:24]} 31. Kh1 {[%emt 0:00:06]} Ng3+ {[%emt 0:00:57]} 32. hxg3 {[%emt 0:01:28]} Rh6+ {[%emt 0:00:24]} 33. Kg1 {[%emt 0:00:03]} Rd8 {[%emt 0:00:24]} 34. Qxc7 {[%emt 0:01:05]} Ra6 {[%emt 0:01:56]} 35. Re1 {[%emt 0:01:45]} Bf6 {[%emt 0:00:30]} 36. Qc5 {[%emt 0:00:47]} Ra4 {[%emt 0:00:32]} 37. Be3 {[%emt 0:00:58]} Rc4 {[%emt 0:00:37]} 38. Qb6 {[%emt 0:00:24]} Re8 {[%emt 0:01:22]} 39. Qb5 {[%emt 0:00:13]} Rd8 {[%emt 0:00:16]} 40. Qb6 {[%emt 0:00:27]} Qe7 {[%emt 0:00:38]} 41. Qa5 {[%emt 0:01:12]} Qd6 {[%emt 0:00:24]} 42. Bf2 {[%emt 0:01:18]} Bxd4 {[%emt 0:01:04]} 43. Bxd4 {[%emt 0:00:16]} Rxd4 {[%emt 0:00:04]} 44. Re6 {[%emt 0:00:24]} Qb8 {[%emt 0:00:36]} 45. f6 {[%emt 0:01:04]} Rf8 {[%emt 0:01:59]} 46. fxg7 {[%emt 0:00:50]} Kxg7 {[%emt 0:00:28]} 47. Qa1 {[%emt 0:00:26]} Qb4 {[%emt 0:00:38]} 48. Qc1 {[%emt 0:00:40]} Rxg4 {[%emt 0:02:55]} 49. Qc7+ {[%emt 0:00:04]} Rf7 {[%emt 0:00:07]} 50. Qe5+ {[%emt 0:00:04]} Kh7 {[%emt 0:00:11]} 51. Kh2 {[%emt 0:01:56]} Qd4 {[%emt 0:02:23]} 52. Qd6 {[%emt 0:00:19]} Qd3 {[%emt 0:01:36]} 53. Re7 {[%emt 0:00:29]} Qg6 {[%emt 0:02:53]} 54. Rxf7+ {[%emt 0:00:15]} Qxf7 {[%emt 0:00:02]} 55. Bxd5 {[%emt 0:00:40]} Qf2+ {[%emt 0:01:36]} 56. Bg2 {[%emt 0:00:04]} Rd4 {[%emt 0:00:12]} 57. Qe7+ {[%emt 0:00:35]} Kh6 {[%emt 0:00:08]} 58. Qe6+ {[%emt 0:00:18]} Kg7 {[%emt 0:00:21]} 59. Qe7+ {[%emt 0:00:12]} Kg6 {[%emt 0:00:14]} 60. Qe6+ {[%emt 0:00:05]} Qf6 {[%emt 0:00:16]} 61. Qxf6+ {[%emt 0:01:10]} Kxf6 {[%emt 0:00:02]} 62. Bf3 {[%emt 0:00:07]} Ke5 {[%emt 0:00:25]} 63. Kg2 {[%emt 0:00:04]} g4 {[%emt 0:00:52]} 64. Bc6 {[%emt 0:00:10]} Rd6 {[%emt 0:00:11]} 65. Bb7 {[%emt 0:00:11]} Rd2+ {[%emt 0:00:15]} 66. Kg1 {[%emt 0:00:09]} Rc2 {[%emt 0:00:08]} 67. Ba8 {[%emt 0:00:15]} Kd4 {[%emt 0:00:08]} 68. Bb7 {[%emt 0:00:04]} Ke3 {[%emt 0:00:08]} 69. Ba8 {[%emt 0:00:09]} Rf2 {[%emt 0:01:42]} 70. Bc6 {[%emt 0:00:06]} Rf6 {[%emt 0:00:16]} 71. Bb7 {[%emt 0:00:06]} Ke2 {[%emt 0:00:38]} 72. Kg2 {[%emt 0:00:11]} Rf2+ {[%emt 0:00:18]} 73. Kg1 {[%emt 0:00:04]} Ke3 {[%emt 0:00:25]} 74. Bc6 {[%emt 0:00:04]} Rc2 {[%emt 0:00:35]} 75. Bb7 {[%emt 0:00:05]} Kd4 {[%emt 0:00:24]} 76. Ba8 {[%emt 0:00:17]} Rc7 {[%emt 0:00:07]} 77. Kf2 {[%emt 0:00:55]} Ke5 {[%emt 0:00:10]} 78. Kg1 {[%emt 0:00:10]} Kd4 {[%emt 0:01:01]} 79. Kg2 {[%emt 0:00:15]} Ra7 {[%emt 0:01:37]} 80. Bc6 {[%emt 0:00:05]} Kc5 {[%emt 0:00:02]} 81. Be4 {[%emt 0:00:06]} Ra4 {[%emt 0:00:09]} 82. Bb7 {[%emt 0:00:11]} Kd4 {[%emt 0:00:54]} 83. Bc6 {[%emt 0:00:05]} Ra7 {[%emt 0:00:16]} 84. Kg1 {[%emt 0:00:04]} Rc7 {[%emt 0:00:13]} 85. Ba8 {[%emt 0:00:05]} Ke3 {[%emt 0:00:28]} 86. Bd5 {[%emt 0:00:06]} Rd7 {[%emt 0:00:12]} 87. Bc6 {[%emt 0:00:06]} Rf7 {[%emt 0:00:11]} 88. Bd5 {[%emt 0:00:21]} Rf3 {[%emt 0:00:08]} 89. Kg2 {[%emt 0:00:04]} Ke2 {[%emt 0:00:07]} 90. Bc6 {[%emt 0:00:19]} Rf2+ {[%emt 0:00:25]} 91. Kg1 {[%emt 0:00:06]} Ke3 {[%emt 0:00:12]} 92. Bb7 {[%emt 0:00:06]} Rb2 {[%emt 0:00:19]} 93. Bc6 {[%emt 0:00:07]} Ke2 {[%emt 0:00:14]} 94. Kg2 {[%emt 0:00:11]} Rc2 {[%emt 0:00:20]} 95. Bb7 {[%emt 0:00:06]} Ke3+ {[%emt 0:00:13]} 96. Kg1 {[%emt 0:00:07]} Rc5 {[%emt 0:00:07]} 97. Kg2 {[%emt 0:00:15]} Ra5 {[%emt 0:01:08]} 98. Bc6 {[%emt 0:00:05]} Ra7 {[%emt 0:00:05]} 99. Bd5 {[%emt 0:00:08]} Kd4 {[%emt 0:00:08]} 100. Bc6 {[%emt 0:00:07]} Re7 {[%emt 0:00:46]} 101. Ba8 {[%emt 0:00:07]} Kc5 {[%emt 0:00:17]} 102. Kg1 {[%emt 0:00:07]} Re8 {[%emt 0:00:18]} 103. Bb7 {[%emt 0:00:06]} Rb8 {[%emt 0:00:06]} 104. Be4 {[%emt 0:00:06]} Kd4 {[%emt 0:00:16]} 105. Bc6 {[%emt 0:00:05]} 1/2-1/2

[Event "28th Hit Open-A 2024"]
[Site "Nova Gorica"]
[Date "2024.01.28"]
[Round "4.7"]
[White "Goroshkov, Maksym"]
[Black "Zupancic, Urban"]
[Result "1-0"]
[ECO "B20"]
[WhiteElo "2338"]
[BlackElo "2025"]
[Annotator "RC"]
[PlyCount "107"]
[EventDate "2024.01.22"]
[EventType "swiss"]
[EventCountry "SLO"]
[SourceTitle "playchess.com"]
[Source "ChessBase"]
[SourceQuality "1"]
[TimeControl "5400+30"]

1. e4 {[%emt 0:00:13]} c5 {[%emt 0:00:09]} 2. b4 {[%emt 0:01:01]} cxb4 {[%emt 0:20:57]} 3. a3 {[%emt 0:00:06]} bxa3 {[%emt 0:00:52]} 4. Bxa3 {[%emt 0:00:19]} d6 {[%emt 0:00:42]} 5. d4 {[%emt 0:05:11]} Nf6 {[%emt 0:02:25]} 6. Nd2 {[%emt 0:02:16]} g6 {[%emt 0:02:34]} 7. Ngf3 {[%emt 0:12:29]} Bg7 {[%emt 0:02:00]} 8. Bd3 {[%emt 0:00:38]} O-O {[%emt 0:05:19]} 9. O-O {[%emt 0:01:00]} Qc7 {[%emt 0:17:26]} 10. c3 {[%emt 0:12:51]} Rd8 {[%emt 0:14:49]} 11. Qb3 {[%emt 0:02:33]} h6 {[%emt 0:09:23]} 12. Rfc1 {[%emt 0:03:47]} e5 {[%emt 0:02:57]} 13. Bb5 {[%emt 0:03:36]} Be6 {[%emt 0:03:31]} 14. Qb1 {[%emt 0:00:41]} a6 {[%emt 0:01:11]} 15. Bb4 {[%emt 0:00:36]} Bd7 {[%emt 0:01:22]} 16. Bxd6 {[%emt 0:03:33]} Qxd6 {[%emt 0:01:07]} 17. dxe5 {[%emt 0:00:03]} Qc7 {[%emt 0:01:30]} 18. exf6 {[%emt 0:00:10]} Bxf6 {[%emt 0:00:39]} 19. Bc4 {[%emt 0:00:08]} Kg7 {[%emt 0:01:52]} 20. e5 {[%emt 0:05:14]} Bg5 {[%emt 0:00:36]} 21. Nxg5 {[%emt 0:01:05]} hxg5 {[%emt 0:00:09]} 22. Qa2 {[%emt 0:02:09]} Bf5 {[%emt 0:03:40]} 23. Nf3 {[%emt 0:01:21]} Nc6 {[%emt 0:00:41]} 24. e6 {[%emt 0:01:31]} f6 {[%emt 0:01:31]} 25. Re1 {[%emt 0:02:14]} Bg4 {[%emt 0:02:25]} 26. Bd5 {[%emt 0:01:18]} Bxf3 27. Bxf3 {[%emt 0:00:01]} Ne5 {[%emt 0:02:02]} 28. Qe2 {[%emt 0:02:09]} Rh8 {[%emt 0:01:20]} 29. h3 {[%emt 0:00:09]} Rae8 {[%emt 0:00:52]} 30. Reb1 {[%emt 0:00:04]} b6 {[%emt 0:00:45]} 31. Rxa6 {[%emt 0:03:55]} Rxe6 {[%emt 0:00:10]} 32. Bd5 {[%emt 0:00:28]} Rd6 {[%emt 0:00:47]} 33. c4 {[%emt 0:00:06]} g4 {[%emt 0:00:42]} 34. Rba1 {[%emt 0:00:37]} Rd7 {[%emt 0:00:21]} 35. hxg4 {[%emt 0:01:41]} Re7 {[%emt 0:00:38]} 36. g3 {[%emt 0:00:12]} Rd8 {[%emt 0:00:31]} 37. g5 {[%emt 0:01:50]} fxg5 {[%emt 0:00:23]} 38. Ra7 {[%emt 0:00:09]} Qd6 {[%emt 0:00:34]} 39. Rxe7+ {[%emt 0:01:01]} Qxe7 {[%emt 0:00:04]} 40. Re1 {[%emt 0:00:21]} Re8 {[%emt 0:00:36]} 41. Qb2 {[%emt 0:01:31]} g4 {[%emt 0:00:50]} 42. Kg2 {[%emt 0:00:21]} Qf6 {[%emt 0:00:24]} 43. Qd4 {[%emt 0:01:06]} Re7 {[%emt 0:00:28]} 44. Rb1 {[%emt 0:01:07]} Nd7 {[%emt 0:00:41]} 45. Qxg4 {[%emt 0:00:06]} Qe5 {[%emt 0:00:29]} 46. Qf3 {[%emt 0:03:24]} Qd4 {[%emt 0:00:28]} 47. Rd1 {[%emt 0:00:27]} Qb2 {[%emt 0:00:20]} 48. Rh1 {[%emt 0:01:44]} Qe5 {[%emt 0:00:34]} 49. Qa3 {[%emt 0:07:00]} Nf6 {[%emt 0:00:36]} 50. Bf3 {[%emt 0:00:05]} Re8 {[%emt 0:00:31]} 51. Qa7+ {[%emt 0:00:11]} Re7 {[%emt 0:00:29]} 52. Qxb6 {[%emt 0:00:05]} Ne4 {[%emt 0:00:27]} 53. Re1 {[%emt 0:00:34]} Qc3 {[%emt 0:00:39]} 54. Rxe4 {[%emt 0:00:17]} 1-0

[Event "28th Hit Open-A 2024"]
[Site "Nova Gorica"]
[Date "2024.01.28"]
[Round "4.8"]
[White "Marchesich, Giovanni"]
[Black "Furlan, Miha"]
[Result "1/2-1/2"]
[ECO "C16"]
[WhiteElo "2210"]
[BlackElo "2287"]
[Annotator "NA RC"]
[PlyCount "31"]
[EventDate "2024.01.22"]
[EventType "swiss"]
[EventCountry "SLO"]
[SourceTitle "playchess.com"]
[Source "ChessBase"]
[SourceQuality "1"]
[TimeControl "5400+30"]

1. e4 {[%emt 0:00:03]} e6 {[%emt 0:00:11]} 2. d4 {[%emt 0:00:22]} d5 {[%emt 0:00:08]} 3. Nc3 {[%emt 0:00:05]} Bb4 {[%emt 0:00:16]} 4. e5 {[%emt 0:00:09]} Qd7 {[%emt 0:00:25]} 5. h4 {[%emt 0:01:32]} b6 {[%emt 0:00:20]} 6. h5 {[%emt 0:02:41]} Bf8 {[%emt 0:06:20]} 7. f4 {[%emt 0:18:51]} Ba6 {[%emt 0:05:47]} 8. Bxa6 {[%emt 0:01:08]} Nxa6 {[%emt 0:00:08]} 9. Qe2 {[%emt 0:00:34]} Nb8 {[%emt 0:01:50]} 10. Nf3 {[%emt 0:01:10]} c5 {[%emt 0:04:58]} 11. g4 {[%emt 0:05:25]} Nc6 {[%emt 0:02:20]} 12. Be3 {[%emt 0:01:25]} cxd4 {[%emt 0:03:43]} 13. Nxd4 {[%emt 0:00:09]} Nxd4 {[%emt 0:01:07]} 14. Bxd4 {[%emt 0:00:06]} Bb4 {[%emt 0:00:48]} 15. O-O {[%emt 0:03:25]} Bxc3 {[%emt 0:02:12]} 16. Bxc3 {[%emt 0:00:16]} 1/2-1/2

[Event "28th Hit Open-A 2024"]
[Site "Nova Gorica"]
[Date "2024.01.28"]
[Round "4.9"]
[White "Davies, Nigel R"]
[Black "Ashwath, R.."]
[Result "1/2-1/2"]
[ECO "D38"]
[WhiteElo "2349"]
[BlackElo "2284"]
[Annotator "TA"]
[PlyCount "28"]
[EventDate "2024.01.22"]
[EventType "swiss"]
[EventCountry "SLO"]
[SourceTitle "playchess.com"]
[Source "ChessBase"]
[SourceQuality "1"]
[TimeControl "5400+30"]

{[%evp 23,28,-2,0,-10,-12,-15,-4]} 1. Nf3 {[%emt 0:00:02]} d5 {[%emt 0:05:22]} 2. d4 {[%emt 0:00:26]} Nf6 {[%emt 0:00:44]} 3. c4 {[%emt 0:00:06]} e6 {[%emt 0:00:03]} 4. Nc3 {[%emt 0:00:08]} Bb4 {[%emt 0:00:14]} 5. cxd5 {[%emt 0:00:15]} exd5 {[%emt 0:00:23]} 6. Qa4+ {[%emt 0:00:12]} Nc6 {[%emt 0:00:07]} 7. Bg5 {[%emt 0:00:08]} h6 {[%emt 0:00:10]} 8. Bxf6 {[%emt 0:00:16]} Qxf6 {[%emt 0:00:08]} 9. e3 {[%emt 0:00:11]} O-O {[%emt 0:01:25]} 10. Be2 {[%emt 0:01:57]} Be6 {[%emt 0:04:46]} 11. O-O {[%emt 0:00:15]} a6 {[%emt 0:01:09]} 12. Rfc1 {[%emt 0:03:48]} Bd6 {[%emt 0:04:48] The position is equal.} 13. Qd1 {[%emt 0:00:17]} Ne7 {[%emt 0:04:04]} 14. Na4 {[%emt 0:03:08]} b6 {[%emt 0:04:51] Not much happened in this game.   Weighted Error Value: White=0.05 (flawless) /Black=0.00 (flawless) .  OK:         	White=1     	---} 1/2-1/2

[Event "28th Hit Open-A 2024"]
[Site "Nova Gorica"]
[Date "2024.01.28"]
[Round "4.10"]
[White "Lavrencic, Matic"]
[Black "Dorokhina, Elizaveta"]
[Result "1-0"]
[ECO "C10"]
[WhiteElo "2299"]
[BlackElo "1994"]
[Annotator "RC"]
[PlyCount "145"]
[EventDate "2024.01.22"]
[EventType "swiss"]
[EventCountry "SLO"]
[SourceTitle "playchess.com"]
[Source "ChessBase"]
[SourceQuality "1"]
[TimeControl "5400+30"]

1. e4 {[%emt 0:00:03]} e6 {[%emt 0:07:00]} 2. d4 {[%emt 0:00:27]} d5 {[%emt 0:00:07]} 3. Nc3 {[%emt 0:00:04]} dxe4 {[%emt 0:00:10]} 4. Nxe4 {[%emt 0:00:07]} Nd7 {[%emt 0:00:08]} 5. Nf3 {[%emt 0:02:09]} Ngf6 {[%emt 0:00:12]} 6. Nxf6+ {[%emt 0:00:42]} Nxf6 {[%emt 0:00:08]} 7. c3 {[%emt 0:00:07]} c5 {[%emt 0:03:48]} 8. Bd3 {[%emt 0:05:23]} cxd4 {[%emt 0:02:56]} 9. Nxd4 {[%emt 0:01:26]} Bc5 {[%emt 0:04:42]} 10. O-O {[%emt 0:00:38]} O-O {[%emt 0:00:20]} 11. Bg5 {[%emt 0:04:23]} h6 {[%emt 0:05:11]} 12. Bh4 {[%emt 0:00:45]} Bxd4 {[%emt 0:03:18]} 13. cxd4 {[%emt 0:00:37]} Bd7 {[%emt 0:00:42]} 14. Bc2 {[%emt 0:19:35]} Bc6 {[%emt 0:04:07]} 15. f3 {[%emt 0:05:44]} Rc8 {[%emt 0:13:26]} 16. Rf2 {[%emt 0:04:05]} Bb5 {[%emt 0:08:56]} 17. Qd2 {[%emt 0:10:33]} Ba6 {[%emt 0:06:40]} 18. Rd1 {[%emt 0:04:32]} Rc7 {[%emt 0:09:00]} 19. Bb1 {[%emt 0:07:06]} Rd7 {[%emt 0:04:22]} 20. Bg3 {[%emt 0:14:01]} Nd5 {[%emt 0:03:06]} 21. Qc2 {[%emt 0:06:02]} g6 {[%emt 0:00:34]} 22. Re1 {[%emt 0:02:19]} Ne7 {[%emt 0:07:30]} 23. Qc1 {[%emt 0:02:32]} Kh7 {[%emt 0:04:07]} 24. Bf4 {[%emt 0:02:00]} Ng8 {[%emt 0:03:31]} 25. Be3 {[%emt 0:02:33]} Qa5 {[%emt 0:00:52]} 26. Bd2 {[%emt 0:01:08]} Qc7 {[%emt 0:02:33]} 27. Bc3 {[%emt 0:00:41]} Rc8 {[%emt 0:00:15]} 28. Qc2 {[%emt 0:01:04]} Bc4 {[%emt 0:01:10]} 29. h4 {[%emt 0:02:08]} Bd5 {[%emt 0:04:19]} 30. h5 {[%emt 0:00:35]} Ne7 {[%emt 0:00:03]} 31. Qe2 {[%emt 0:01:32]} Qf4 {[%emt 0:00:32]} 32. Bd2 {[%emt 0:00:45]} Qh4 {[%emt 0:00:33]} 33. hxg6+ {[%emt 0:00:13]} Nxg6 {[%emt 0:00:50]} 34. Qe3 {[%emt 0:00:30]} Kg7 {[%emt 0:01:07]} 35. Rff1 {[%emt 0:00:51]} Rh8 {[%emt 0:00:33]} 36. Rc1 {[%emt 0:00:16]} Qg3 {[%emt 0:00:20]} 37. Qf2 {[%emt 0:00:37]} Qxf2+ {[%emt 0:00:28]} 38. Kxf2 {[%emt 0:00:01]} h5 {[%emt 0:01:01]} 39. Rh1 {[%emt 0:00:19]} Kf6 {[%emt 0:00:41]} 40. Rh2 {[%emt 0:00:30]} h4 {[%emt 0:00:32]} 41. Ke3 {[%emt 0:00:34]} Rdd8 {[%emt 0:00:28]} 42. Rch1 {[%emt 0:00:49]} Rc8 {[%emt 0:00:33]} 43. b3 {[%emt 0:00:49]} Rcg8 {[%emt 0:00:34]} 44. Be1 {[%emt 0:00:27]} Ke7 {[%emt 0:00:29]} 45. Bb4+ {[%emt 0:00:42]} Kd7 {[%emt 0:00:02]} 46. Kf2 {[%emt 0:00:24]} Rh5 {[%emt 0:01:01]} 47. Ke3 {[%emt 0:00:28]} Rg5 {[%emt 0:00:28]} 48. Bd2 {[%emt 0:00:32]} Ne7 {[%emt 0:00:31]} 49. Kf2 {[%emt 0:00:20]} R5g7 {[%emt 0:00:27]} 50. Bh6 {[%emt 0:00:26]} Rg3 {[%emt 0:00:27]} 51. Bf4 {[%emt 0:00:18]} R3g7 {[%emt 0:00:02]} 52. Be5 {[%emt 0:00:20]} Rg5 {[%emt 0:00:54]} 53. Bf6 {[%emt 0:00:11]} Rh5 {[%emt 0:00:25]} 54. Rxh4 {[%emt 0:00:18]} Rxh4 {[%emt 0:00:11]} 55. Rxh4 {[%emt 0:00:06]} Rc8 {[%emt 0:01:03]} 56. Rh7 {[%emt 0:01:18]} Rf8 {[%emt 0:00:33]} 57. Bg7 {[%emt 0:00:31]} Rc8 {[%emt 0:00:14]} 58. Bh6 {[%emt 0:00:21]} f5 {[%emt 0:00:37]} 59. Bg5 {[%emt 0:00:18]} Re8 {[%emt 0:00:04]} 60. Ke3 {[%emt 0:00:40]} Kd6 {[%emt 0:00:13]} 61. Bxe7+ {[%emt 0:00:42]} Rxe7 {[%emt 0:00:06]} 62. Rxe7 {[%emt 0:00:04]} Kxe7 {[%emt 0:00:05]} 63. Kf4 {[%emt 0:00:04]} Kd6 {[%emt 0:00:26]} 64. Bd3 {[%emt 0:00:32]} a5 {[%emt 0:00:37]} 65. Bb5 {[%emt 0:00:53]} b6 {[%emt 0:00:09]} 66. g4 {[%emt 0:00:20]} fxg4 {[%emt 0:01:40]} 67. fxg4 {[%emt 0:00:01]} Ke7 {[%emt 0:00:18]} 68. Ke5 {[%emt 0:00:25]} Bf3 {[%emt 0:00:29]} 69. g5 {[%emt 0:00:05]} Bg4 {[%emt 0:00:57]} 70. Bd3 {[%emt 0:00:19]} Kf7 {[%emt 0:00:19]} 71. Kd6 {[%emt 0:00:29]} Bd1 {[%emt 0:01:11]} 72. Kc6 {[%emt 0:00:31]} a4 {[%emt 0:00:23]} 73. bxa4 {[%emt 0:00:05]} 1-0